fUST/lending_fUST_20260506
["ID","MTS","AMOUNT","RATE_DAILY","PERIOD"]
[421632911,1778002241000,-500.0,0.00012328,2]
[421632912,1778002241000,-532.59,0.00012328,2]
[421632920,1778002241000,-500.0,0.00012328,2]
[421632918,1778002241000,-500.0,0.00012328,2]
[421632917,1778002241000,-500.0,0.00012328,2]
[421632919,1778002241000,-4056.89,0.00012328,2]
[421632940,1778002241000,-500.0,0.00012328,2]
[421632915,1778002241000,-500.0,0.00012328,2]
[421632916,1778002241000,-685.76,0.00012328,2]
[421632923,1778002241000,-1184.75,0.00012328,2]
[421632922,1778002241000,-500.0,0.00012328,2]
[421632924,1778002241000,-500.0,0.00012328,2]
[421632914,1778002241000,-500.0,0.00012328,2]
[421632921,1778002241000,-500.0,0.00012328,2]
[421632925,1778002241000,-500.0,0.00012328,2]
[421632933,1778002241000,-500.0,0.00012328,2]
[421632935,1778002241000,-500.0,0.00012328,2]
[421632926,1778002241000,-985.09,0.00012328,2]
[421632934,1778002241000,-500.0,0.00012328,2]
[421632930,1778002241000,-500.0,0.00012328,2]
[421632931,1778002241000,-500.0,0.00012328,2]
[421632932,1778002241000,-2021.18,0.00012328,2]
[421632928,1778002241000,-500.0,0.00012328,2]
[421632938,1778002241000,-1761.58,0.00012328,2]
[421632937,1778002241000,-500.0,0.00012328,2]
[421632927,1778002241000,-500.0,0.00012328,2]
[421632936,1778002241000,-500.0,0.00012328,2]
[421632929,1778002241000,-547.55966877,0.00012328,2]
[421633013,1778002242000,-661.02,0.00012328,2]
[421633015,1778002242000,-470.217802,0.00012328,2]
[421633008,1778002242000,-500.0,0.00012328,2]
[421633010,1778002242000,-870.36,0.00012328,2]
[421633005,1778002242000,-1235.21,0.00012328,2]
[421633006,1778002242000,-500.0,0.00012328,2]
[421633007,1778002242000,-640.09,0.00012328,2]
[421633011,1778002242000,-500.0,0.00012328,2]
[421633014,1778002242000,-500.0,0.00012328,2]
[421633016,1778002242000,-500.0,0.00012328,2]
[421633004,1778002242000,-500.0,0.00012328,2]
[421633009,1778002242000,-500.0,0.00012328,2]
[421633012,1778002242000,-500.0,0.00012328,2]
[421633038,1778002242000,-500.0,0.00012328,2]
[421633019,1778002242000,-3762.18,0.00012328,2]
[421633022,1778002242000,-500.0,0.00012328,2]
[421633021,1778002242000,-500.0,0.00012328,2]
[421633020,1778002242000,-500.0,0.00012328,2]
[421633018,1778002242000,-157.07082205,0.00012328,2]
[421633026,1778002242000,-500.0,0.00012328,2]
[421633024,1778002242000,-500.0,0.00012328,2]
[421633028,1778002242000,-500.0,0.00012328,2]
[421633023,1778002242000,-500.0,0.00012328,2]
[421633027,1778002242000,-602.2,0.00012328,2]
[421633025,1778002242000,-500.0,0.00012328,2]
[421633030,1778002242000,-500.0,0.00012328,2]
[421633037,1778002242000,-2873.36,0.00012328,2]
[421633003,1778002242000,-500.0,0.00012328,2]
[421633017,1778002242000,-2014.8,0.00012328,2]
[421632996,1778002242000,-500.0,0.00012328,2]
[421632981,1778002242000,-25592.172412,0.00012328,2]
[421632995,1778002242000,-500.0,0.00012328,2]
[421633040,1778002242000,-500.0,0.00012328,2]
[421632976,1778002242000,-500.0,0.00012328,2]
[421632977,1778002242000,-500.0,0.00012328,2]
[421632974,1778002242000,-649.14,0.00012328,2]
[421632972,1778002242000,-500.0,0.00012328,2]
[421632975,1778002242000,-237.78162236,0.00012328,2]
[421632971,1778002242000,-500.0,0.00012328,2]
[421632973,1778002242000,-500.0,0.00012328,2]
[421632979,1778002242000,-500.0,0.00012328,2]
[421632978,1778002242000,-500.0,0.00012328,2]
[421632980,1778002242000,-500.0,0.00012328,2]
[421632989,1778002242000,-500.0,0.00012328,2]
[421632984,1778002242000,-500.0,0.00012328,2]
[421632990,1778002242000,-500.0,0.00012328,2]
[421632983,1778002242000,-836.88,0.00012328,2]
[421632986,1778002242000,-500.0,0.00012328,2]
[421632982,1778002242000,-500.0,0.00012328,2]
[421632985,1778002242000,-500.0,0.00012328,2]
[421632988,1778002242000,-500.0,0.00012328,2]
[421632987,1778002242000,-500.0,0.00012328,2]
[421633002,1778002242000,-654.98,0.00012328,2]
[421632992,1778002242000,-2267.39,0.00012328,2]
[421632991,1778002242000,-923.27,0.00012328,2]
[421632993,1778002242000,-500.0,0.00012328,2]
[421632994,1778002242000,-500.0,0.00012328,2]
[421632999,1778002242000,-500.0,0.00012328,2]
[421632997,1778002242000,-500.0,0.00012328,2]
[421632998,1778002242000,-410.99351665,0.00012328,2]
[421633001,1778002242000,-1700.6,0.00012328,2]
[421633000,1778002242000,-500.0,0.00012328,2]
[421633029,1778002242000,-500.0,0.00012328,2]
[421633042,1778002242000,-500.0,0.00012328,2]
[421633031,1778002242000,-500.0,0.00012328,2]
[421633071,1778002242000,-500.0,0.00012328,2]
[421633070,1778002242000,-613.09255306,0.00012328,2]
[421633079,1778002242000,-500.0,0.00012328,2]
[421633080,1778002242000,-500.0,0.00012328,2]
[421633072,1778002242000,-500.0,0.00012328,2]
[421633074,1778002242000,-500.0,0.00012328,2]
[421633077,1778002242000,-500.0,0.00012328,2]
[421633076,1778002242000,-500.0,0.00012328,2]
[421633075,1778002242000,-500.0,0.00012328,2]
[421633078,1778002242000,-326.49564235,0.00012328,2]
[421633073,1778002242000,-500.0,0.00012328,2]
[421633082,1778002242000,-500.0,0.00012328,2]
[421633092,1778002242000,-5066.54,0.00012328,2]
[421633093,1778002242000,-500.0,0.00012328,2]
[421633081,1778002242000,-500.0,0.00012328,2]
[421633085,1778002242000,-500.0,0.00012328,2]
[421633091,1778002242000,-500.0,0.00012328,2]
[421633087,1778002242000,-5561.323872,0.00012328,2]
[421633088,1778002242000,-500.0,0.00012328,2]
[421633086,1778002242000,-500.0,0.00012328,2]
[421633084,1778002242000,-500.0,0.00012328,2]
[421633039,1778002242000,-500.0,0.00012328,2]
[421633090,1778002242000,-500.0,0.00012328,2]
[421633089,1778002242000,-500.0,0.00012328,2]
[421633094,1778002242000,-1773.46,0.00012328,2]
[421633096,1778002242000,-500.0,0.00012328,2]
[421633097,1778002242000,-500.0,0.00012328,2]
[421633098,1778002242000,-500.0,0.00012328,2]
[421633095,1778002242000,-500.0,0.00012328,2]
[421633068,1778002242000,-500.0,0.00012328,2]
[421633069,1778002242000,-313.55162799,0.00012328,2]
[421633083,1778002242000,-1348.87,0.00012328,2]
[421633056,1778002242000,-938.52,0.00012328,2]
[421633064,1778002242000,-500.0,0.00012328,2]
[421633035,1778002242000,-500.0,0.00012328,2]
[421633032,1778002242000,-500.0,0.00012328,2]
[421633033,1778002242000,-500.0,0.00012328,2]
[421633036,1778002242000,-500.0,0.00012328,2]
[421633052,1778002242000,-4042.37,0.00012328,2]
[421633053,1778002242000,-500.0,0.00012328,2]
[421633043,1778002242000,-500.0,0.00012328,2]
[421633041,1778002242000,-500.0,0.00012328,2]
[421633054,1778002242000,-500.0,0.00012328,2]
[421633047,1778002242000,-500.0,0.00012328,2]
[421633051,1778002242000,-500.0,0.00012328,2]
[421633050,1778002242000,-500.0,0.00012328,2]
[421633049,1778002242000,-500.0,0.00012328,2]
[421633034,1778002242000,-500.0,0.00012328,2]
[421633048,1778002242000,-500.0,0.00012328,2]
[421633045,1778002242000,-743.13,0.00012328,2]
[421633065,1778002242000,-500.0,0.00012328,2]
[421633063,1778002242000,-500.0,0.00012328,2]
[421633066,1778002242000,-500.0,0.00012328,2]
[421633060,1778002242000,-590.66,0.00012328,2]
[421633061,1778002242000,-500.0,0.00012328,2]
[421633067,1778002242000,-500.0,0.00012328,2]
[421633059,1778002242000,-500.0,0.00012328,2]
[421633058,1778002242000,-500.0,0.00012328,2]
[421633055,1778002242000,-500.0,0.00012328,2]
[421633057,1778002242000,-500.0,0.00012328,2]
[421633046,1778002242000,-622.13,0.00012328,2]
[421633062,1778002242000,-500.0,0.00012328,2]
[421633044,1778002242000,-500.0,0.00012328,2]
[421633137,1778002243000,-500.0,0.00012328,2]
[421633136,1778002243000,-500.0,0.00012328,2]
[421633133,1778002243000,-500.0,0.00012328,2]
[421633138,1778002243000,-500.0,0.00012328,2]
[421633131,1778002243000,-500.0,0.00012328,2]
[421633126,1778002243000,-500.0,0.00012328,2]
[421633129,1778002243000,-12583.81,0.00012328,2]
[421633128,1778002243000,-890.68,0.00012328,2]
[421633130,1778002243000,-500.0,0.00012328,2]
[421633139,1778002243000,-500.04495578,0.00012328,2]
[421633143,1778002243000,-597.67,0.00012328,2]
[421633140,1778002243000,-915.4731,0.00012328,2]
[421633146,1778002243000,-10709.89,0.00012328,2]
[421633144,1778002243000,-500.0,0.00012328,2]
[421633145,1778002243000,-568.55893772,0.00012328,2]
[421633142,1778002243000,-500.0,0.00012328,2]
[421633151,1778002243000,-509.26464952,0.00012328,2]
[421633148,1778002243000,-287.47163052,0.00012328,2]
[421633149,1778002243000,-500.0,0.00012328,2]
[421633127,1778002243000,-500.0,0.00012328,2]
[421633150,1778002243000,-500.0,0.00012328,2]
[421633141,1778002243000,-500.0,0.00012328,2]
[421633124,1778002243000,-500.0,0.00012328,2]
[421633108,1778002243000,-500.0,0.00012328,2]
[421633125,1778002243000,-500.0,0.00012328,2]
[421633147,1778002243000,-7002.66,0.00012328,2]
[421633099,1778002243000,-500.0,0.00012328,2]
[421633106,1778002243000,-500.0,0.00012328,2]
[421633105,1778002243000,-500.0,0.00012328,2]
[421633102,1778002243000,-500.0,0.00012328,2]
[421633100,1778002243000,-500.0,0.00012328,2]
[421633104,1778002243000,-581.63,0.00012328,2]
[421633101,1778002243000,-500.0,0.00012328,2]
[421633103,1778002243000,-4389.26,0.00012328,2]
[421633119,1778002243000,-500.0,0.00012328,2]
[421633123,1778002243000,-500.0,0.00012328,2]
[421633118,1778002243000,-1439.27,0.00012328,2]
[421633120,1778002243000,-500.0,0.00012328,2]
[421633111,1778002243000,-500.0,0.00012328,2]
[421633112,1778002243000,-545.47,0.00012328,2]
[421633107,1778002243000,-603.51937816,0.00012328,2]
[421633109,1778002243000,-500.0,0.00012328,2]
[421633115,1778002243000,-500.0,0.00012328,2]
[421633110,1778002243000,-500.0,0.00012328,2]
[421633114,1778002243000,-500.0,0.00012328,2]
[421633117,1778002243000,-500.0,0.00012328,2]
[421633116,1778002243000,-500.0,0.00012328,2]
[421633122,1778002243000,-500.0,0.00012328,2]
[421633161,1778002243000,-517.86655695,0.00012328,2]
[421633153,1778002243000,-500.0,0.00012328,2]
[421633163,1778002243000,-6703.17,0.00012328,2]
[421633181,1778002243000,-733.11,0.00012328,2]
[421633182,1778002243000,-500.0,0.00012328,2]
[421633186,1778002243000,-500.0,0.00012328,2]
[421633185,1778002243000,-500.0,0.00012328,2]
[421633180,1778002243000,-500.0,0.00012328,2]
[421633183,1778002243000,-500.0,0.00012328,2]
[421633184,1778002243000,-500.0,0.00012328,2]
[421633199,1778002243000,-500.0,0.00012328,2]
[421633191,1778002243000,-500.0,0.00012328,2]
[421633192,1778002243000,-500.0,0.00012328,2]
[421633189,1778002243000,-500.0,0.00012328,2]
[421633198,1778002243000,-500.0,0.00012328,2]
[421633195,1778002243000,-500.0,0.00012328,2]
[421633196,1778002243000,-500.0,0.00012328,2]
[421633194,1778002243000,-1145.77,0.00012328,2]
[421633197,1778002243000,-4650.73,0.00012328,2]
[421633193,1778002243000,-4207.83,0.00012328,2]
[421633201,1778002243000,-500.0,0.00012328,2]
[421633200,1778002243000,-500.0,0.00012328,2]
[421633202,1778002243000,-500.0,0.00012328,2]
[421633152,1778002243000,-500.0,0.00012328,2]
[421633188,1778002243000,-500.0,0.00012328,2]
[421633178,1778002243000,-500.0,0.00012328,2]
[421633190,1778002243000,-500.0,0.00012328,2]
[421633176,1778002243000,-964.9,0.00012328,2]
[421633162,1778002243000,-500.0,0.00012328,2]
[421633179,1778002243000,-500.0,0.00012328,2]
[421633154,1778002243000,-600.52,0.00012328,2]
[421633155,1778002243000,-500.0,0.00012328,2]
[421633156,1778002243000,-457.41419786,0.00012328,2]
[421633157,1778002243000,-3358.85,0.00012328,2]
[421633159,1778002243000,-500.0,0.00012328,2]
[421633160,1778002243000,-2591.47,0.00012328,2]
[421633165,1778002243000,-500.0,0.00012328,2]
[421633164,1778002243000,-500.0,0.00012328,2]
[421633167,1778002243000,-299.6616386,0.00012328,2]
[421633158,1778002243000,-500.0,0.00012328,2]
[421633171,1778002243000,-1157.17,0.00012328,2]
[421633166,1778002243000,-500.0,0.00012328,2]
[421633174,1778002243000,-356.70008705,0.00012328,2]
[421633168,1778002243000,-3883.75,0.00012328,2]
[421633169,1778002243000,-924.68,0.00012328,2]
[421633172,1778002243000,-553.21177174,0.00012328,2]
[421633175,1778002243000,-500.0,0.00012328,2]
[421633187,1778002243000,-623.0,0.00012328,2]
[421633170,1778002243000,-3541.94,0.00012328,2]
[421633173,1778002243000,-914.11,0.00012328,2]
[421633177,1778002243000,-500.0,0.00012328,2]
[421633244,1778002244000,-699.52,0.00012328,2]
[421633242,1778002244000,-500.0,0.00012328,2]
[421633230,1778002244000,-555.15668849,0.00012328,2]
[421633251,1778002244000,-500.0,0.00012328,2]
[421633240,1778002244000,-500.0,0.00012328,2]
[421633250,1778002244000,-533.33642677,0.00012328,2]
[421633238,1778002244000,-500.0,0.00012328,2]
[421633245,1778002244000,-500.0,0.00012328,2]
[421633248,1778002244000,-500.0,0.00012328,2]
[421633233,1778002244000,-10696.57,0.00012328,2]
[421633239,1778002244000,-1524.19,0.00012328,2]
[421633249,1778002244000,-762.72,0.00012328,2]
[421633237,1778002244000,-500.0,0.00012328,2]
[421633263,1778002244000,-500.0,0.00012328,2]
[421633252,1778002244000,-3453.39,0.00012328,2]
[421633253,1778002244000,-655.98,0.00012328,2]
[421633254,1778002244000,-500.0,0.00012328,2]
[421633264,1778002244000,-500.0,0.00012328,2]
[421633266,1778002244000,-500.0,0.00012328,2]
[421633265,1778002244000,-500.0,0.00012328,2]
[421633259,1778002244000,-58127.56,0.00012328,2]
[421633257,1778002244000,-500.0,0.00012328,2]
[421633260,1778002244000,-3661.78,0.00012328,2]
[421633261,1778002244000,-500.0,0.00012328,2]
[421633262,1778002244000,-500.0,0.00012328,2]
[421633234,1778002244000,-2596.18,0.00012328,2]
[421633247,1778002244000,-7772.67,0.00012328,2]
[421633232,1778002244000,-555.09,0.00012328,2]
[421633210,1778002244000,-500.0,0.00012328,2]
[421633229,1778002244000,-177.94102722,0.00012328,2]
[421633211,1778002244000,-500.0,0.00012328,2]
[421633203,1778002244000,-3603.85,0.00012328,2]
[421633204,1778002244000,-500.0,0.00012328,2]
[421633205,1778002244000,-542.70682577,0.00012328,2]
[421633206,1778002244000,-500.0,0.00012328,2]
[421633208,1778002244000,-801.95,0.00012328,2]
[421633267,1778002244000,-500.0,0.00012328,2]
[421633209,1778002244000,-500.0,0.00012328,2]
[421633207,1778002244000,-500.0,0.00012328,2]
[421633213,1778002244000,-500.0,0.00012328,2]
[421633223,1778002244000,-500.0,0.00012328,2]
[421633219,1778002244000,-7985.38,0.00012328,2]
[421633216,1778002244000,-500.0,0.00012328,2]
[421633231,1778002244000,-500.0,0.00012328,2]
[421633220,1778002244000,-500.0,0.00012328,2]
[421633222,1778002244000,-3607.16,0.00012328,2]
[421633215,1778002244000,-500.0,0.00012328,2]
[421633218,1778002244000,-500.0,0.00012328,2]
[421633212,1778002244000,-1511.57,0.00012328,2]
[421633221,1778002244000,-500.0,0.00012328,2]
[421633217,1778002244000,-1174.77,0.00012328,2]
[421633225,1778002244000,-3281.37,0.00012328,2]
[421633235,1778002244000,-595.77,0.00012328,2]
[421633224,1778002244000,-500.0,0.00012328,2]
[421633227,1778002244000,-500.0,0.00012328,2]
[421633226,1778002244000,-500.0,0.00012328,2]
[421633236,1778002244000,-4622.19,0.00012328,2]
[421633228,1778002244000,-3135.57,0.00012328,2]
[421633214,1778002244000,-500.0,0.00012328,2]
[421633277,1778002244000,-500.0,0.00012328,2]
[421633256,1778002244000,-500.0,0.00012328,2]
[421633268,1778002244000,-580.42433807,0.00012328,2]
[421633298,1778002244000,-500.0,0.00012328,2]
[421633305,1778002244000,-1232.16,0.00012328,2]
[421633316,1778002244000,-500.0,0.00012328,2]
[421633315,1778002244000,-500.0,0.00012328,2]
[421633304,1778002244000,-500.0,0.00012328,2]
[421633306,1778002244000,-500.0,0.00012328,2]
[421633307,1778002244000,-500.0,0.00012328,2]
[421633314,1778002244000,-676.5,0.00012328,2]
[421633308,1778002244000,-500.0,0.00012328,2]
[421633309,1778002244000,-2893.83,0.00012328,2]
[421633312,1778002244000,-500.0,0.00012328,2]
[421633310,1778002244000,-233.27127248,0.00012328,2]
[421633313,1778002244000,-500.0,0.00012328,2]
[421633318,1778002244000,-1037.56,0.00012328,2]
[421633319,1778002244000,-2929.92,0.00012328,2]
[421633320,1778002244000,-500.0,0.00012328,2]
[421633317,1778002244000,-500.0,0.00012328,2]
[421633328,1778002244000,-2096.38,0.00012328,2]
[421633324,1778002244000,-729.02,0.00012328,2]
[421633323,1778002244000,-500.33325081,0.00012328,2]
[421633321,1778002244000,-500.0,0.00012328,2]
[421633325,1778002244000,-1564.53,0.00012328,2]
[421633327,1778002244000,-842.53,0.00012328,2]
[421633326,1778002244000,-500.0,0.00012328,2]
[421633322,1778002244000,-500.0,0.00012328,2]
[421633329,1778002244000,-200.16609408,0.00012328,2]
[421633269,1778002244000,-500.0,0.00012328,2]
[421633293,1778002244000,-500.0,0.00012328,2]
[421633299,1778002244000,-500.0,0.00012328,2]
[421633311,1778002244000,-500.0,0.00012328,2]
[421633301,1778002244000,-500.0,0.00012328,2]
[421633276,1778002244000,-500.0,0.00012328,2]
[421633296,1778002244000,-500.0,0.00012328,2]
[421633278,1778002244000,-500.0,0.00012328,2]
[421633275,1778002244000,-500.0,0.00012328,2]
[421633274,1778002244000,-11965.69,0.00012328,2]
[421633273,1778002244000,-500.0,0.00012328,2]
[421633270,1778002244000,-500.0,0.00012328,2]
[421633272,1778002244000,-500.0,0.00012328,2]
[421633279,1778002244000,-500.0,0.00012328,2]
[421633281,1778002244000,-167.18120535,0.00012328,2]
[421633291,1778002244000,-2572.18,0.00012328,2]
[421633280,1778002244000,-530.86110899,0.00012328,2]
[421633282,1778002244000,-500.0,0.00012328,2]
[421633284,1778002244000,-500.0,0.00012328,2]
[421633271,1778002244000,-755.53,0.00012328,2]
[421633295,1778002244000,-500.0,0.00012328,2]
[421633303,1778002244000,-12367.76,0.00012328,2]
[421633288,1778002244000,-500.0,0.00012328,2]
[421633300,1778002244000,-777.84,0.00012328,2]
[421633297,1778002244000,-4739.33,0.00012328,2]
[421633302,1778002244000,-500.0,0.00012328,2]
[421633292,1778002244000,-6414.52,0.00012328,2]
[421633294,1778002244000,-550.08,0.00012328,2]
[421633286,1778002244000,-2307.17,0.00012328,2]
[421633289,1778002244000,-2969.6,0.00012328,2]
[421633290,1778002244000,-621.72,0.00012328,2]
[421633283,1778002244000,-500.0,0.00012328,2]
[421633285,1778002244000,-787.12,0.00012328,2]
[421633287,1778002244000,-500.0,0.00012328,2]
[421633371,1778002245000,-649.0,0.00012465,2]
[421633366,1778002245000,-237.65721298,0.00012465,2]
[421633370,1778002245000,-278.61022012,0.00012465,2]
[421633378,1778002245000,-649.0,0.00012465,2]
[421633389,1778002245000,-649.0,0.00012465,2]
[421633377,1778002245000,-649.0,0.00012465,2]
[421633362,1778002245000,-200.24093891,0.00012465,2]
[421633369,1778002245000,-649.0,0.00012465,2]
[421633367,1778002245000,-166.0,0.00012465,2]
[421633363,1778002245000,-156.0,0.00012465,2]
[421633361,1778002245000,-862.28603014,0.00012443,2]
[421633376,1778002245000,-649.0,0.00012465,2]
[421633368,1778002245000,-166.0,0.00012465,2]
[421633374,1778002245000,-649.0,0.00012465,2]
[421633387,1778002245000,-649.0,0.00012465,2]
[421633375,1778002245000,-649.0,0.00012465,2]
[421633373,1778002245000,-649.0,0.00012465,2]
[421633379,1778002245000,-649.0,0.00012465,2]
[421633381,1778002245000,-649.0,0.00012465,2]
[421633382,1778002245000,-649.0,0.00012465,2]
[421633383,1778002245000,-649.0,0.00012465,2]
[421633391,1778002245000,-649.0,0.00012465,2]
[421633386,1778002245000,-649.0,0.00012465,2]
[421633390,1778002245000,-649.0,0.00012465,2]
[421633385,1778002245000,-649.0,0.00012465,2]
[421633380,1778002245000,-649.0,0.00012465,2]
[421633384,1778002245000,-649.0,0.00012465,2]
[421633364,1778002245000,-167.0,0.00012465,2]
[421633372,1778002245000,-649.0,0.00012465,2]
[421633360,1778002245000,-800.0,0.00012437,2]
[421633330,1778002245000,-686.66,0.00012328,2]
[421633365,1778002245000,-166.0,0.00012465,2]
[421633340,1778002245000,-500.0,0.00012328,2]
[421633341,1778002245000,-500.0,0.00012328,2]
[421633331,1778002245000,-500.0,0.00012328,2]
[421633333,1778002245000,-571.71,0.00012328,2]
[421633335,1778002245000,-500.0,0.00012328,2]
[421633334,1778002245000,-3534.63,0.00012328,2]
[421633332,1778002245000,-500.0,0.00012328,2]
[421633336,1778002245000,-599.54773707,0.00012328,2]
[421633339,1778002245000,-500.0,0.00012328,2]
[421633338,1778002245000,-500.0,0.00012328,2]
[421633337,1778002245000,-500.0,0.00012328,2]
[421633343,1778002245000,-500.0,0.00012328,2]
[421633353,1778002245000,-800.0,0.00012371,2]
[421633359,1778002245000,-476.5826563,0.0001242,2]
[421633345,1778002245000,-500.0,0.00012328,2]
[421633346,1778002245000,-500.0,0.00012328,2]
[421633347,1778002245000,-500.0,0.00012328,2]
[421633348,1778002245000,-1559.0,0.0001233,2]
[421633350,1778002245000,-1282.21716758,0.0001235,2]
[421633342,1778002245000,-500.0,0.00012328,2]
[421633352,1778002245000,-800.0,0.00012369,2]
[421633349,1778002245000,-801.85129955,0.00012333,2]
[421633344,1778002245000,-500.0,0.00012328,2]
[421633355,1778002245000,-831.51979763,0.00012388,2]
[421633356,1778002245000,-800.0,0.00012389,2]
[421633357,1778002245000,-800.0,0.00012396,2]
[421633358,1778002245000,-800.0,0.00012407,2]
[421633354,1778002245000,-800.0,0.00012387,2]
[421633351,1778002245000,-800.0,0.00012362,2]
[421633388,1778002245000,-649.0,0.00012465,2]
[421633412,1778002245000,-341.0,0.00012465,2]
[421633392,1778002245000,-649.0,0.00012465,2]
[421633424,1778002245000,-341.0,0.00012465,2]
[421633428,1778002245000,-341.0,0.00012465,2]
[421633427,1778002245000,-341.0,0.00012465,2]
[421633432,1778002245000,-341.0,0.00012465,2]
[421633440,1778002245000,-341.0,0.00012465,2]
[421633441,1778002245000,-341.0,0.00012465,2]
[421633443,1778002245000,-341.0,0.00012465,2]
[421633442,1778002245000,-341.0,0.00012465,2]
[421633444,1778002245000,-341.0,0.00012465,2]
[421633431,1778002245000,-341.0,0.00012465,2]
[421633434,1778002245000,-341.0,0.00012465,2]
[421633436,1778002245000,-341.0,0.00012465,2]
[421633433,1778002245000,-341.0,0.00012465,2]
[421633426,1778002245000,-341.0,0.00012465,2]
[421633437,1778002245000,-341.0,0.00012465,2]
[421633439,1778002245000,-341.0,0.00012465,2]
[421633446,1778002245000,-341.0,0.00012465,2]
[421633447,1778002245000,-341.0,0.00012465,2]
[421633448,1778002245000,-341.0,0.00012465,2]
[421633452,1778002245000,-341.0,0.00012465,2]
[421633445,1778002245000,-341.0,0.00012465,2]
[421633451,1778002245000,-341.0,0.00012465,2]
[421633456,1778002245000,-341.0,0.00012465,2]
[421633450,1778002245000,-341.0,0.00012465,2]
[421633454,1778002245000,-341.0,0.00012465,2]
[421633455,1778002245000,-341.0,0.00012465,2]
[421633453,1778002245000,-341.0,0.00012465,2]
[421633393,1778002245000,-649.0,0.00012465,2]
[421633438,1778002245000,-341.0,0.00012465,2]
[421633425,1778002245000,-341.0,0.00012465,2]
[421633449,1778002245000,-341.0,0.00012465,2]
[421633423,1778002245000,-341.0,0.00012465,2]
[421633429,1778002245000,-341.0,0.00012465,2]
[421633402,1778002245000,-341.0,0.00012465,2]
[421633399,1778002245000,-341.0,0.00012465,2]
[421633401,1778002245000,-341.0,0.00012465,2]
[421633403,1778002245000,-341.0,0.00012465,2]
[421633404,1778002245000,-341.0,0.00012465,2]
[421633394,1778002245000,-177.57428312,0.00012465,2]
[421633398,1778002245000,-341.0,0.00012465,2]
[421633396,1778002245000,-341.0,0.00012465,2]
[421633397,1778002245000,-341.0,0.00012465,2]
[421633395,1778002245000,-341.0,0.00012465,2]
[421633405,1778002245000,-341.0,0.00012465,2]
[421633414,1778002245000,-341.0,0.00012465,2]
[421633406,1778002245000,-341.0,0.00012465,2]
[421633400,1778002245000,-341.0,0.00012465,2]
[421633407,1778002245000,-341.0,0.00012465,2]
[421633416,1778002245000,-341.0,0.00012465,2]
[421633430,1778002245000,-341.0,0.00012465,2]
[421633420,1778002245000,-341.0,0.00012465,2]
[421633422,1778002245000,-341.0,0.00012465,2]
[421633419,1778002245000,-341.0,0.00012465,2]
[421633413,1778002245000,-341.0,0.00012465,2]
[421633409,1778002245000,-341.0,0.00012465,2]
[421633421,1778002245000,-341.0,0.00012465,2]
[421633411,1778002245000,-341.0,0.00012465,2]
[421633410,1778002245000,-341.0,0.00012465,2]
[421633418,1778002245000,-341.0,0.00012465,2]